﻿Department family,Entity,Date,Expense type,Expense area,Supplier,Transaction number,Amount,VAT registration number
Dept of Health,MHRA,01/02/2021,Laboratory Consumables,Standards Processing,Europharma Machinery Limited,45420,"25,378.54",565736605
Dept of Health,MHRA,01/02/2021,MHRA-administered Seminar Costs,Communications,Glasgows Ltd,16704,"77,225.92",448190633
Dept of Health,MHRA,01/02/2021,Help desk and end user support,"Technology, Digital, Data & Delivery",Insight Networking Solutions,5152571,"65,202.02",746075129
Dept of Health,MHRA,01/02/2021,IT Security,"Technology, Digital, Data & Delivery",NCC Group Security Services Ltd,16402,"100,320.00",732334556
Dept of Health,MHRA,01/02/2021,Contracted Out Services Miscellaneous,Vigilance & Risk Management of Medicines,Red Ant Digital Ltd,INV-08514,"57,000.00",123388322
Dept of Health,MHRA,01/02/2021,Contracted Out Services Miscellaneous,"Technology, Digital, Data & Delivery",Redrock Consulting Ltd,9702,"28,560.00",862247715
Dept of Health,MHRA,01/02/2021,Software & Licences,"Technology, Digital, Data & Delivery",Thoughtonomy Ltd,INV15712,"108,000.00",167014717
Dept of Health,MHRA,03/02/2021,Contracted Out Services Miscellaneous,Directorate,Ernst & Young LLP,GB01G000162423,"252,000.00",773831408
Dept of Health,MHRA,03/02/2021,Assets Under Construction - Plant & Equipment,Operations,Parker Air Conditioning Ltd,INV25434,"43,803.84",506700965
Dept of Health,MHRA,03/02/2021,Contracted Out Services Miscellaneous,"Technology, Digital, Data & Delivery",Redrock Consulting Ltd,9721,"30,091.29",862247715
Dept of Health,MHRA,08/02/2021,Application Services and Maintenance,"Technology, Digital, Data & Delivery",Accenture (UK) Limited,3003496441,"350,734.07",788629066
Dept of Health,MHRA,08/02/2021,Application Services and Maintenance,"Technology, Digital, Data & Delivery",Accenture (UK) Limited,3003496442,"26,500.01",788629066
Dept of Health,MHRA,08/02/2021,Security,Operations,CIS Security Limited,41708,"52,816.88",206193092
Dept of Health,MHRA,08/02/2021,Internal Audit,Finance & Procurement,Government Internal Audit Agency,43232,"32,724.00",888827544
Dept of Health,MHRA,08/02/2021,Chemicals and Reagents,"Inspection, Enforcement & Standards",LGC Ltd,50896927,"114,606.35",674056721
Dept of Health,MHRA,10/02/2021,Library & Periodical Subscriptions,Communications,LM Prenax UK,1550141,"81,590.55",356947157
Dept of Health,MHRA,10/02/2021,Software & Licences,"Technology, Digital, Data & Delivery",Trustmarque Solutions Limited,2313578,"285,810.00",394593601
Dept of Health,MHRA,10/02/2021,Facilities Management & Portering,Finance & Procurement,Turner & Townsend,000603302,"29,777.63",764244132
Dept of Health,MHRA,15/02/2021,Application Services and Maintenance,"Technology, Digital, Data & Delivery",Accenture (UK) Limited,3003496880,"71,010.35",788629066
Dept of Health,MHRA,15/02/2021,Application Services and Maintenance,"Technology, Digital, Data & Delivery",Accenture (UK) Limited,3003496881,"122,939.47",788629066
Dept of Health,MHRA,15/02/2021,Assets Under Construction - Clearing Account,"Technology, Digital, Data & Delivery",Appian Software International LLC,NS_6279,"596,000.00",
Dept of Health,MHRA,15/02/2021,Gas,Operations,Corona Energy Retail 4 Ltd,15857346,"55,936.80",577704800
Dept of Health,MHRA,15/02/2021,Subcontracted Laboratory Services,Infectious Disease Diagnostics,Defence Science Technology Laboratories,MST016709,"97,504.50",888805068
Dept of Health,MHRA,15/02/2021,Electricity,Operations,EDF Energy,9158979,"85,675.13",523041202
Dept of Health,MHRA,15/02/2021,Application Services and Maintenance,"Technology, Digital, Data & Delivery",Genpact (UK) Limited,615734,"681,600.00",849126115
Dept of Health,MHRA,15/02/2021,Contracted Out Services Miscellaneous,Vigilance & Risk Management of Medicines,Red Ant Digital Ltd,INV-08518,"30,000.00",123388322
Dept of Health,MHRA,15/02/2021,Contracted Out Services Miscellaneous,"Technology, Digital, Data & Delivery",Redrock Consulting Ltd,9738,"28,353.38",862247715
Dept of Health,MHRA,15/02/2021,Contracted Out Services Miscellaneous,"Technology, Digital, Data & Delivery",Redrock Consulting Ltd,9743,"76,316.42",862247715
Dept of Health,MHRA,17/02/2021,Contracted Out Services Miscellaneous,"Technology, Digital, Data & Delivery",Red Ant Digital Ltd,INV-08521,"30,000.00",123388322
Dept of Health,MHRA,22/02/2021,Application Services and Maintenance,"Technology, Digital, Data & Delivery",Accenture (UK) Limited,3003496921,"46,020.00",788629066
Dept of Health,MHRA,22/02/2021,Assets Under Construction - Plant & Equipment,Operations,Commercial Services UK Ltd,INV-1103,"53,856.00",130597616
Dept of Health,MHRA,22/02/2021,Assets Under Construction - Land & Buildings,Operations,Commercial Services UK Ltd,INV-1107,"73,968.96",130597616
Dept of Health,MHRA,22/02/2021,Executive Search Fees,Directorate,IRG Advisors LLP,864632,"42,000.00",991244896
Dept of Health,MHRA,22/02/2021,Contracted Out Services Miscellaneous,Vigilance & Risk Management of Medicines,Red Ant Digital Ltd,INV-08526,"30,000.00",123388322
Dept of Health,MHRA,22/02/2021,Contracted Out Services Miscellaneous,Vigilance & Risk Management of Medicines,Red Ant Digital Ltd,INV-08527,"30,000.00",123388322
Dept of Health,MHRA,22/02/2021,Facilities Management & Portering,Finance & Procurement,Turner & Townsend,000602703,"95,725.45",764244132
Dept of Health,MHRA,24/02/2021,Security,Operations,CIS Security Limited,41216,"51,530.63",206193092
Dept of Health,MHRA,24/02/2021,Contracted Out Services Miscellaneous,Vigilance & Risk Management of Medicines,Commonwealth Informatics Inc,GBP69,"44,848.13",
Dept of Health,MHRA,24/02/2021,Solicitors,Policy,Government Legal Department,A3252,"41,700.00",888823066
